Workbook

Sheet Table
B3: Matches Played | C3: Matches Won | D3: Games Won | E3: Games Lost | F3: Points Won | G3: Points Lost | H3: Points Diff
A4: Cricketers | B4: =COUNT(Cricketers!E:E) -> 18 | C4: =SUM(Cricketers!I:I) -> 15 | D4: =SUM(Cricketers!E:E) -> 63 | E4: =SUM(Cricketers!F:F) -> 21 | F4: =SUM(Cricketers!G:G) -> 992 | G4: =SUM(Cricketers!H:H) -> 549 | H4: =F4-G4 -> 443
A5: Station | B5: =COUNT(Station!E:E) -> 18 | C5: =SUM(Station!I:I) -> 13 | D5: =SUM(Station!E:E) -> 57 | E5: =SUM(Station!F:F) -> 33 | F5: =SUM(Station!G:G) -> 995 | G5: =SUM(Station!H:H) -> 794 | H5: =F5-G5 -> 201
A6: Farmers Boy | B6: =COUNT('Farmers Boy'!E:E) -> 18 | C6: =SUM('Farmers Boy'!I:I) -> 10 | D6: =SUM('Farmers Boy'!E:E) -> 47 | E6: =SUM('Farmers Boy'!F:F) -> 43 | F6: =SUM('Farmers Boy'!G:G) -> 909 | G6: =SUM('Farmers Boy'!H:H) -> 883 | H6: =F6-G6 -> 26
A7: Drifters | B7: =COUNT(Drifters!E:E) -> 18 | C7: =SUM(Drifters!I:I) -> 9 | D7: =SUM(Drifters!E:E) -> 42 | E7: =SUM(Drifters!F:F) -> 46 | F7: =SUM(Drifters!G:G) -> 828 | G7: =SUM(Drifters!H:H) -> 880 | H7: =F7-G7 -> -52
A8: Old Bulls Head | B8: =COUNT('Old Bulls Head'!E:E) -> 18 | C8: =SUM('Old Bulls Head'!I:I) -> 8 | D8: =SUM('Old Bulls Head'!E:E) -> 38 | E8: =SUM('Old Bulls Head'!F:F) -> 50 | F8: =SUM('Old Bulls Head'!G:G) -> 811 | G8: =SUM('Old Bulls Head'!H:H) -> 942 | H8: =F8-G8 -> -131
A9: Axemen | B9: =COUNT(Axemen!E:E) -> 18 | C9: =SUM(Axemen!I:I) -> 7 | D9: =SUM(Axemen!E:E) -> 41 | E9: =SUM(Axemen!F:F) -> 49 | F9: =SUM(Axemen!G:G) -> 854 | G9: =SUM(Axemen!H:H) -> 903 | H9: =F9-G9 -> -49
A10: Brown Bear | B10: =COUNT('Brown Bear'!E:E) -> 18 | C10: =SUM('Brown Bear'!I:I) -> 1 | D10: =SUM('Brown Bear'!E:E) -> 21 | E10: =SUM('Brown Bear'!F:F) -> 67 | F10: =SUM('Brown Bear'!G:G) -> 604 | G10: =SUM('Brown Bear'!H:H) -> 1042 | H10: =F10-G10 -> -438

Sheet Axemen
A2: Team | B2: Axemen
K3: Check that there are enough points to win the games
A4: Date | B4: Week | C4: Home/Away | D4: Opponent | E4: Games Won | F4: Games lost | G4: Points For | H4: Points Against | I4: Match Won? | J4: Check that input numbers are within range | K4: Home | L4: Away
A5: 20.04.2014 | B5: 1 | C5: Bye | F5: =IF(E5="","",5-E5) ->  | I5: =IF(E5="","",IF(E5>2,1,0)) ->  | J5: =IF(E5="","",IF(OR(E5<0,E5>5,G5<0,G5>(5*13),H5<0,H5>(5*13)),"Number out of range error","Valid Scores entered")) ->  | K5: =IF(E5="","",IF((E5*13>G5),"Error in submitting Games Won or Points Home","OK")) ->  | L5: =IF(E5="","",IF((F5*13>H5),"Error in submitting Games Won or Points Away","OK")) -> 
A6: 27.04.2015 | B6: =B5+1 -> 2 | C6: Away | D6: Old Bulls Head | E6: ='Old Bulls Head'!F6 -> 2 | F6: 3 | G6: ='Old Bulls Head'!H6 -> 58 | H6: ='Old Bulls Head'!G6 -> 59 | I6: =IF(E6="","",IF(E6>2,1,0)) -> 0 | J6: =IF(E6="","",IF(OR(E6<0,E6>5,G6<0,G6>(5*13),H6<0,H6>(5*13)),"Number out of range error","Valid Scores entered")) -> Valid Scores entered | K6: =IF(E6="","",IF((E6*13>G6),"Error in submitting Games Won or Points Home","OK")) -> OK | L6: =IF(E6="","",IF((F6*13>H6),"Error in submitting Games Won or Points Away","OK")) -> OK
A7: 04.05.2015 | B7: =B6+1 -> 3 | C7: Bank Hol | I7: =IF(E7="","",IF(E7>2,1,0)) ->  | J7: =IF(E7="","",IF(OR(E7<0,E7>5,G7<0,G7>(5*13),H7<0,H7>(5*13)),"Number out of range error","Valid Scores entered")) ->  | K7: =IF(E7="","",IF((E7*13>G7),"Error in submitting Games Won or Points Home","OK")) -> 
A8: 11.05.2015 | B8: 4 | C8: Home | D8: Farmers Boy | E8: 4 | F8: 1 | G8: 59 | H8: 34 | I8: 1 | J8: Valid Scores entered | K8: OK | L8: OK
A9: 18.05.2015 | B9: 5 | C9: Away | D9: Brown Bear | E9: ='Brown Bear'!F9 -> 5 | F9: 0 | G9: ='Brown Bear'!H9 -> 65 | H9: ='Brown Bear'!G9 -> 29 | I9: 1 | J9: Valid Scores entered | K9: OK | L9: OK
A10: 25.05.2015 | B10: 6 | C10: Bank Hol
A11: 01.06.2015 | B11: 7 | C11: Home | D11: Drifters | E11: 2 | F11: 3 | G11: 41 | H11: 56 | I11: 0 | J11: Valid Scores entered | K11: OK | L11: OK
A12: 08.06.2015 | B12: 8 | C12: Away | D12: Station Masters | E12: =Station!F12 -> 1 | F12: 4 | G12: =Station!H12 -> 29 | H12: =Station!G12 -> 58 | I12: 0 | J12: Valid Scores entered | K12: OK | L12: OK
A13: 15.06.2015 | B13: 9 | C13: Home | D13: Cricketers | E13: 1 | F13: 4 | G13: 32 | H13: 54 | I13: 0 | J13: Valid Scores entered | K13: OK | L13: OK
A14: 22.06.2015 | B14: 10 | C14: Bye
A15: 29.06.2015 | B15: 11 | C15: Home | D15: Old Bulls Head | E15: 2 | F15: 3 | G15: 40 | H15: 49 | I15: 0 | J15: Valid Scores entered | K15: OK | L15: OK
A16: 06.07.2015 | B16: 12 | C16: Away | D16: Farmers Boy | E16: ='Farmers Boy'!F16 -> 1 | F16: 4 | G16: ='Farmers Boy'!H16 -> 37 | H16: ='Farmers Boy'!G16 -> 62 | I16: 0 | J16: Valid Scores entered | K16: OK | L16: OK
A17: 13.07.2015 | B17: 13 | C17: Home | D17: Brown Bear | E17: 3 | F17: 2 | G17: 52 | H17: 44 | I17: 1 | J17: Valid Scores entered | K17: OK | L17: OK
A18: 20.07.2015 | B18: 14 | C18: Away | D18: Drifters | E18: =Drifters!F18 -> 1 | F18: 4 | G18: =Drifters!H18 -> 44 | H18: =Drifters!G18 -> 59 | I18: 0 | J18: Valid Scores entered | K18: OK | L18: OK
A19: 27.07.2015 | B19: 15 | C19: Home | D19: Station Masters | E19: 4 | F19: 1 | G19: 60 | H19: 46 | I19: 1 | J19: Valid Scores entered | K19: OK | L19: OK
A20: 03.08.2015 | B20: 16 | C20: Away | D20: Cricketers | E20: =Cricketers!F20 -> 1 | F20: 4 | G20: =Cricketers!H20 -> 43 | H20: =Cricketers!G20 -> 52 | I20: 0 | J20: Valid Scores entered | K20: OK | L20: OK
A21: 10.08.2015 | B21: 17 | C21: Bye
A22: 17.08.2015 | B22: 18 | C22: Away | D22: Old Bulls Head | E22: ='Old Bulls Head'!F22 -> 1 | F22: 4 | G22: ='Old Bulls Head'!H22 -> 48 | H22: ='Old Bulls Head'!G22 -> 61 | I22: 0 | J22: Valid Scores entered | K22: OK | L22: OK
A23: 24.08.2015 | B23: 19 | C23: Home | D23: Farmers Boy | E23: 2 | F23: 3 | G23: 36 | H23: 52 | I23: 0 | J23: Valid Scores entered | K23: OK | L23: OK
A24: 31.08.2015 | B24: 20 | C24: Bank Hol
A25: 07.09.2015 | B25: 21 | C25: Away | D25: Brown Bear | E25: ='Brown Bear'!F25 -> 3 | F25: 2 | G25: ='Brown Bear'!H25 -> 57 | H25: ='Brown Bear'!G25 -> 46 | I25: 1 | J25: Valid Scores entered | K25: OK | L25: OK
A26: 14.09.2015 | B26: 22 | C26: Home | D26: Drifters | E26: 4 | F26: 1 | G26: 64 | H26: 35 | I26: 1 | J26: Valid Scores entered | K26: OK | L26: OK
A27: 21.09.2015 | B27: 23 | C27: Away | D27: Station Masters | E27: =Station!F27 -> 3 | F27: 2 | G27: =Station!H27 -> 48 | H27: =Station!G27 -> 49 | I27: 1 | J27: Valid Scores entered | K27: OK | L27: OK
A28: 28.09.2015 | B28: 24 | C28: Home | D28: Cricketers | E28: 1 | F28: 4 | G28: 41 | H28: 58 | I28: 0 | J28: Valid Scores entered | K28: OK | L28: OK

Sheet Old Bulls Head
A2: Team | B2: Old Bulls Head
K3: Check that there are enough points to win the games
A4: Date | B4: Week | C4: Home/Away | D4: Opponent | E4: Games Won | F4: Games lost | G4: Points For | H4: Points Against | I4: Match Won? | J4: Check that input numbers are within range | K4: Home | L4: Away
A5: 20.04.2014 | B5: 1 | C5: Away | D5: Cricketers | E5: =Cricketers!F5 -> 0 | F5: =IF(E5="","",5-E5) -> 5 | G5: =Cricketers!H5 -> 17 | H5: =Cricketers!G5 -> 65 | I5: =IF(E5="","",IF(E5>2,1,0)) -> 0 | J5: =IF(E5="","",IF(OR(E5<0,E5>5,G5<0,G5>(5*13),H5<0,H5>(5*13)),"Number out of range error","Valid Scores entered")) -> Valid Scores entered | K5: =IF(E5="","",IF((E5*13>G5),"Error in submitting Games Won or Points Home","OK")) -> OK | L5: =IF(E5="","",IF((F5*13>H5),"Error in submitting Games Won or Points Away","OK")) -> OK
A6: 27.04.2015 | B6: =B5+1 -> 2 | C6: Home | D6: Axemen | E6: 3 | F6: 2 | G6: 59 | H6: 58 | I6: =IF(E6="","",IF(E6>2,1,0)) -> 1 | J6: =IF(E6="","",IF(OR(E6<0,E6>5,G6<0,G6>(5*13),H6<0,H6>(5*13)),"Number out of range error","Valid Scores entered")) -> Valid Scores entered | K6: =IF(E6="","",IF((E6*13>G6),"Error in submitting Games Won or Points Home","OK")) -> OK | L6: =IF(E6="","",IF((F6*13>H6),"Error in submitting Games Won or Points Away","OK")) -> OK
A7: 04.05.2015 | B7: =B6+1 -> 3 | C7: Bank Hol
A8: 11.05.2015 | B8: 4 | C8: Bye
A9: 18.05.2015 | B9: 5 | C9: Away | D9: Farmers Boy | E9: ='Farmers Boy'!F9 -> 2 | F9: 3 | G9: ='Farmers Boy'!H9 -> 50 | H9: ='Farmers Boy'!G9 -> 55 | I9: 0 | J9: Valid Scores entered | K9: OK | L9: OK
A10: 25.05.2015 | B10: 6 | C10: Bank Hol
A11: 01.06.2015 | B11: 7 | C11: Home | D11: Brown Bear | E11: 4 | F11: 1 | G11: 60 | H11: 44 | I11: 1 | J11: Valid Scores entered | K11: OK | L11: OK
A12: 08.06.2015 | B12: 8 | C12: Away | D12: Drifters | E12: =Drifters!F12 -> 1 | F12: 4 | G12: =Drifters!H12 -> 44 | H12: =Drifters!G12 -> 64 | I12: 0 | J12: Valid Scores entered | K12: OK | L12: OK
A13: 15.06.2015 | B13: 9 | C13: Home | D13: Station | E13: 2 | F13: 3 | G13: 45 | H13: 53 | I13: 0 | J13: Valid Scores entered | K13: OK | L13: OK
A14: 22.06.2015 | B14: 10 | C14: Home | D14: Cricketers | E14: 1 | F14: 4 | G14: 30 | H14: 55 | I14: 0 | J14: Valid Scores entered | K14: OK | L14: OK
A15: 29.06.2015 | B15: 11 | C15: Away | D15: Axemen | E15: =Axemen!F15 -> 3 | F15: 2 | G15: =Axemen!H15 -> 49 | H15: =Axemen!G15 -> 40 | I15: 1 | J15: Valid Scores entered | K15: OK | L15: OK
A16: 06.07.2015 | B16: 12 | C16: Bye
A17: 13.07.2015 | B17: 13 | C17: Home | D17: Farmers Boy | E17: 2 | F17: 3 | G17: 58 | H17: 49 | I17: 0 | J17: Valid Scores entered | K17: OK | L17: OK
A18: 20.07.2015 | B18: 14 | C18: Away | D18: Brown Bear | E18: ='Brown Bear'!F18 -> 3 | F18: 2 | G18: ='Brown Bear'!H18 -> 61 | H18: ='Brown Bear'!G18 -> 43 | I18: 1 | J18: Valid Scores entered | K18: OK | L18: OK
A19: 27.07.2015 | B19: 15 | C19: Home | D19: Drifters | E19: 3 | F19: 2 | G19: 61 | H19: 42 | I19: 1 | J19: Valid Scores entered | K19: OK | L19: OK
A20: 03.08.2015 | B20: 16 | C20: Away | D20: Station | E20: =Station!F20 -> 1 | F20: 4 | G20: =Station!H20 -> 39 | H20: =Station!G20 -> 61 | I20: 0 | J20: Valid Scores entered | K20: OK | L20: OK
A21: 10.08.2015 | B21: 17 | C21: Away | D21: Cricketers | E21: =Cricketers!F21 -> 0 | F21: 3 | G21: =Cricketers!H21 -> 0 | H21: =Cricketers!G21 -> 45 | I21: 0 | J21: Valid Scores entered | K21: OK | L21: OK
A22: 17.08.2015 | B22: 18 | C22: Home | D22: Axemen | E22: 4 | F22: 1 | G22: 61 | H22: 48 | I22: 1 | J22: Valid Scores entered | K22: OK | L22: OK
A23: 24.08.2015 | B23: 19 | C23: Bye
A24: 31.08.2015 | B24: 20 | C24: Bank Hol
A25: 07.09.2015 | B25: 21 | C25: Away | D25: Farmers Boy | E25: ='Farmers Boy'!F25 -> 0 | F25: 5 | G25: ='Farmers Boy'!H25 -> 31 | H25: ='Farmers Boy'!G25 -> 65 | I25: 0 | J25: Valid Scores entered | K25: OK | L25: OK
A26: 14.09.2015 | B26: 22 | C26: Home | D26: Brown Bear | E26: 4 | F26: 1 | G26: 56 | H26: 45 | I26: 1 | J26: Valid Scores entered | K26: OK | L26: OK
A27: 21.09.2015 | B27: 23 | C27: Away | D27: Drifters | E27: =Drifters!F27 -> 1 | F27: 4 | G27: =Drifters!H27 -> 33 | H27: =Drifters!G27 -> 59 | I27: 0 | J27: Valid Scores entered | K27: OK | L27: OK
A28: 28.09.2015 | B28: 24 | C28: Home | D28: Station | E28: 4 | F28: 1 | G28: 57 | H28: 51 | I28: 1 | J28: Valid Scores entered | K28: OK | L28: OK

Sheet Farmers Boy
A2: Team | B2: Farmers Boy
K3: Check that there are enough points to win the games
A4: Date | B4: Week | C4: Home/Away | D4: Opponent | E4: Games Won | F4: Games lost | G4: Points For | H4: Points Against | I4: Match Won? | J4: Check that input numbers are within range | K4: Home | L4: Away
A5: 20.04.2014 | B5: 1 | C5: Away | D5: Station Masters | E5: =Station!F5 -> 2 | F5: =IF(E5="","",5-E5) -> 3 | G5: =Station!H5 -> 43 | H5: =Station!G5 -> 61 | I5: =IF(E5="","",IF(E5>2,1,0)) -> 0 | J5: =IF(E5="","",IF(OR(E5<0,E5>5,G5<0,G5>(5*13),H5<0,H5>(5*13)),"Number out of range error","Valid Scores entered")) -> Valid Scores entered | K5: =IF(E5="","",IF((E5*13>G5),"Error in submitting Games Won or Points Home","OK")) -> OK | L5: =IF(E5="","",IF((F5*13>H5),"Error in submitting Games Won or Points Away","OK")) -> OK
A6: 27.04.2015 | B6: =B5+1 -> 2 | C6: Home | D6: Cricketers | E6: 3 | F6: 2 | G6: 46 | H6: 52 | I6: =IF(E6="","",IF(E6>2,1,0)) -> 1 | J6: =IF(E6="","",IF(OR(E6<0,E6>5,G6<0,G6>(5*13),H6<0,H6>(5*13)),"Number out of range error","Valid Scores entered")) -> Valid Scores entered | K6: =IF(E6="","",IF((E6*13>G6),"Error in submitting Games Won or Points Home","OK")) -> OK | L6: =IF(E6="","",IF((F6*13>H6),"Error in submitting Games Won or Points Away","OK")) -> OK
A7: 04.05.2015 | B7: =B6+1 -> 3 | C7: Bank Hol
A8: 11.05.2015 | B8: 4 | C8: Away | D8: Axemen | E8: =Axemen!F8 -> 1 | F8: 4 | G8: =Axemen!H8 -> 34 | H8: =Axemen!G8 -> 59 | I8: 0 | J8: Valid Scores entered | K8: OK | L8: OK
A9: 18.05.2015 | B9: 5 | C9: Home | D9: Old Bulls Head | E9: 3 | F9: 2 | G9: 55 | H9: 50 | I9: 1 | J9: Valid Scores entered | K9: OK | L9: OK
A10: 25.05.2015 | B10: 6 | C10: Bank Hol
A11: 01.06.2015 | B11: 7 | C11: Bye
A12: 08.06.2015 | B12: 8 | C12: Away | D12: Brown Bear | E12: ='Brown Bear'!F12 -> 2 | F12: 3 | G12: ='Brown Bear'!H12 -> 52 | H12: ='Brown Bear'!G12 -> 50 | I12: 0 | J12: Valid Scores entered | K12: OK | L12: OK
A13: 15.06.2015 | B13: 9 | C13: Home | D13: Drifters | E13: 2 | F13: 3 | G13: 53 | H13: 45 | I13: 0 | J13: Valid Scores entered | K13: OK | L13: OK
A14: 22.06.2015 | B14: 10 | C14: Home | D14: Station Masters | E14: 0 | F14: 5 | G14: 45 | H14: 65 | I14: 0 | J14: Valid Scores entered | K14: OK | L14: OK
A15: 29.06.2015 | B15: 11 | C15: Away | D15: Cricketers | E15: =Cricketers!F15 -> 3 | F15: 2 | G15: =Cricketers!H15 -> 49 | H15: =Cricketers!G15 -> 51 | I15: 1 | J15: Valid Scores entered | K15: OK | L15: OK
A16: 06.07.2015 | B16: 12 | C16: Home | D16: Axemen | E16: 4 | F16: 1 | G16: 62 | H16: 37 | I16: 1 | J16: Valid Scores entered | K16: OK | L16: OK
A17: 13.07.2015 | B17: 13 | C17: Away | D17: Old Bulls Head | E17: ='Old Bulls Head'!F17 -> 3 | F17: 2 | G17: ='Old Bulls Head'!H17 -> 49 | H17: ='Old Bulls Head'!G17 -> 58 | I17: 1 | J17: Valid Scores entered | K17: OK | L17: OK
A18: 20.07.2015 | B18: 14 | C18: Bye
A19: 27.07.2015 | B19: 15 | C19: Home | D19: Brown Bear | E19: 4 | F19: 1 | G19: 61 | H19: 32 | I19: 1 | J19: Valid Scores entered | K19: OK | L19: OK
A20: 03.08.2015 | B20: 16 | C20: Away | D20: Drifters | E20: =Drifters!F20 -> 2 | F20: 3 | G20: =Drifters!H20 -> 49 | H20: =Drifters!G20 -> 51 | I20: 0 | J20: Valid Scores entered | K20: OK | L20: OK
A21: 10.08.2015 | B21: 17 | C21: Away | D21: Station Masters | E21: =Station!F21 -> 1 | F21: 4 | G21: =Station!H21 -> 39 | H21: =Station!G21 -> 62 | I21: 0 | J21: Valid Scores entered | K21: OK | L21: OK
A22: 17.08.2015 | B22: 18 | C22: Home | D22: Cricketers | E22: 2 | F22: 3 | G22: 38 | H22: 54 | I22: 0 | J22: Valid Scores entered | K22: OK | L22: OK
A23: 24.08.2015 | B23: 19 | C23: Away | D23: Axemen | E23: =Axemen!F23 -> 3 | F23: 2 | G23: =Axemen!H23 -> 52 | H23: =Axemen!G23 -> 36 | I23: 1 | J23: Valid Scores entered | K23: OK | L23: OK
A24: 31.08.2015 | B24: 20 | C24: Bank Hol
A25: 07.09.2015 | B25: 21 | C25: Home | D25: Old Bulls Head | E25: 5 | F25: 0 | G25: 65 | H25: 31 | I25: 1 | J25: Valid Scores entered | K25: OK | L25: OK
A26: 14.09.2015 | B26: 22 | C26: Bye
A27: 21.09.2015 | B27: 23 | C27: Away | D27: Brown Bear | E27: ='Brown Bear'!F27 -> 4 | F27: 1 | G27: ='Brown Bear'!H27 -> 62 | H27: ='Brown Bear'!G27 -> 38 | I27: 1 | J27: Valid Scores entered | K27: OK | L27: OK
A28: 28.09.2015 | B28: 24 | C28: Home | D28: Drifters | E28: 3 | F28: 2 | G28: 55 | H28: 51 | I28: 1 | J28: Valid Scores entered | K28: OK | L28: OK

Sheet Brown Bear
A2: Team | B2: Brown Bear
K3: Check that there are enough points to win the games
A4: Date | B4: Week | C4: Home/Away | D4: Opponent | E4: Games Won | F4: Games lost | G4: Points For | H4: Points Against | I4: Match Won? | J4: Check that input numbers are within range | K4: Home | L4: Away
A5: 20.04.2014 | B5: 1 | C5: Away | D5: Drifters | E5: =Drifters!F5 -> 2 | F5: =IF(E5="","",5-E5) -> 3 | G5: =Drifters!H5 -> 43 | H5: =Drifters!G5 -> 46 | I5: =IF(E5="","",IF(E5>2,1,0)) -> 0 | J5: =IF(E5="","",IF(OR(E5<0,E5>5,G5<0,G5>(5*13),H5<0,H5>(5*13)),"Number out of range error","Valid Scores entered")) -> Valid Scores entered | K5: =IF(E5="","",IF((E5*13>G5),"Error in submitting Games Won or Points Home","OK")) -> OK | L5: =IF(E5="","",IF((F5*13>H5),"Error in submitting Games Won or Points Away","OK")) -> OK
A6: 27.04.2015 | B6: =B5+1 -> 2 | C6: Home | D6: Station Masters | E6: 2 | F6: 3 | G6: 44 | H6: 56 | I6: =IF(E6="","",IF(E6>2,1,0)) -> 0 | J6: =IF(E6="","",IF(OR(E6<0,E6>5,G6<0,G6>(5*13),H6<0,H6>(5*13)),"Number out of range error","Valid Scores entered")) -> Valid Scores entered | K6: =IF(E6="","",IF((E6*13>G6),"Error in submitting Games Won or Points Home","OK")) -> OK | L6: =IF(E6="","",IF((F6*13>H6),"Error in submitting Games Won or Points Away","OK")) -> OK
A7: 04.05.2015 | B7: =B6+1 -> 3 | C7: Bank Hol
A8: 11.05.2015 | B8: 4 | C8: Away | D8: Cricketers | E8: =Cricketers!F8 -> 2 | F8: 3 | G8: =Cricketers!H8 -> 28 | H8: =Cricketers!G8 -> 57 | I8: 0 | J8: Valid Scores entered | K8: OK | L8: OK
A9: 18.05.2015 | B9: 5 | C9: Home | D9: Axemen | E9: 0 | F9: 5 | G9: 29 | H9: 65 | I9: 0 | J9: Valid Scores entered | K9: OK | L9: OK
A10: 25.05.2015 | B10: 6 | C10: Bank Hol
A11: 01.06.2015 | B11: 7 | C11: Away | D11: Old Bulls Head | E11: ='Old Bulls Head'!F11 -> 1 | F11: 4 | G11: ='Old Bulls Head'!H11 -> 44 | H11: ='Old Bulls Head'!G11 -> 60 | I11: 0 | J11: Valid Scores entered | K11: OK | L11: OK
A12: 08.06.2015 | B12: 8 | C12: Home | D12: Farmers Boy | E12: 3 | F12: 2 | G12: 50 | H12: 52 | I12: 1 | J12: Valid Scores entered | K12: OK | L12: OK
A13: 15.06.2015 | B13: 9 | C13: Bye
A14: 22.06.2015 | B14: 10 | C14: Home | D14: Drifters | E14: 1 | F14: 4 | G14: 23 | H14: 63 | I14: 0 | J14: Valid Scores entered | K14: OK | L14: OK
A15: 29.06.2015 | B15: 11 | C15: Away | D15: Station Masters | E15: =Station!F15 -> 0 | F15: 5 | G15: =Station!H15 -> 23 | H15: =Station!G15 -> 65 | I15: 0 | J15: Valid Scores entered | K15: OK | L15: OK
A16: 06.07.2015 | B16: 12 | C16: Home | D16: Cricketers | E16: 0 | F16: 5 | G16: 16 | H16: 65 | I16: 0 | J16: Valid Scores entered | K16: OK | L16: OK
A17: 13.07.2015 | B17: 13 | C17: Away | D17: Axemen | E17: =Axemen!F17 -> 2 | F17: 3 | G17: =Axemen!H17 -> 44 | H17: =Axemen!G17 -> 52 | I17: 0 | J17: Valid Scores entered | K17: OK | L17: OK
A18: 20.07.2015 | B18: 14 | C18: Home | D18: Old Bulls Head | E18: 2 | F18: 3 | G18: 43 | H18: 61 | I18: 0 | J18: Valid Scores entered | K18: OK | L18: OK
A19: 27.07.2015 | B19: 15 | C19: Away | D19: Farmers Boy | E19: ='Farmers Boy'!F19 -> 1 | F19: 4 | G19: ='Farmers Boy'!H19 -> 32 | H19: ='Farmers Boy'!G19 -> 61 | I19: 0 | J19: Valid Scores entered | K19: OK | L19: OK
A20: 03.08.2015 | B20: 16 | C20: Bye
A21: 10.08.2015 | B21: 17 | C21: Away | D21: Drifters | E21: =Drifters!F21 -> 0 | F21: 5 | G21: =Drifters!H21 -> 29 | H21: =Drifters!G21 -> 65 | I21: 0 | J21: Valid Scores entered | K21: OK | L21: OK
A22: 17.08.2015 | B22: 18 | C22: Home | D22: Station Masters | E22: 1 | F22: 4 | G22: 27 | H22: 54 | I22: 0 | J22: Valid Scores entered | K22: OK | L22: OK
A23: 24.08.2015 | B23: 19 | C23: Away | D23: Cricketers | E23: =Cricketers!F23 -> 0 | F23: 3 | G23: =Cricketers!H23 -> 0 | H23: =Cricketers!G23 -> 45 | I23: 0 | J23: Valid Scores entered | K23: OK | L23: OK
A24: 31.08.2015 | B24: 20 | C24: Bank Hol
A25: 07.09.2015 | B25: 21 | C25: Home | D25: Axemen | E25: 2 | F25: 3 | G25: 46 | H25: 57 | I25: 0 | J25: Valid Scores entered | K25: OK | L25: OK
A26: 14.09.2015 | B26: 22 | C26: Away | D26: Old Bulls Head | E26: ='Old Bulls Head'!F26 -> 1 | F26: 4 | G26: ='Old Bulls Head'!H26 -> 45 | H26: ='Old Bulls Head'!G26 -> 56 | I26: 0 | J26: Valid Scores entered | K26: OK | L26: OK
A27: 21.09.2015 | B27: 23 | C27: Home | D27: Farmers Boy | E27: 1 | F27: 4 | G27: 38 | H27: 62 | I27: 0 | J27: Valid Scores entered | K27: OK | L27: OK
A28: 28.09.2015 | B28: 24 | C28: Bye

Sheet Drifters
A2: Team | B2: Drifters
K3: Check that there are enough points to win the games
A4: Date | B4: Week | C4: Home/Away | D4: Opponent | E4: Games Won | F4: Games lost | G4: Points For | H4: Points Against | I4: Match Won? | J4: Check that input numbers are within range | K4: Home | L4: Away
A5: 20.04.2014 | B5: 1 | C5: Home | D5: Brown Bear | E5: 3 | F5: =IF(E5="","",5-E5) -> 2 | G5: 46 | H5: 43 | I5: =IF(E5="","",IF(E5>2,1,0)) -> 1 | J5: =IF(E5="","",IF(OR(E5<0,E5>5,G5<0,G5>(5*13),H5<0,H5>(5*13)),"Number out of range error","Valid Scores entered")) -> Valid Scores entered | K5: =IF(E5="","",IF((E5*13>G5),"Error in submitting Games Won or Points Home","OK")) -> OK | L5: =IF(E5="","",IF((F5*13>H5),"Error in submitting Games Won or Points Away","OK")) -> OK
A6: 27.04.2015 | B6: =B5+1 -> 2 | C6: Bye | I6: =IF(E6="","",IF(E6>2,1,0)) ->  | J6: =IF(E6="","",IF(OR(E6<0,E6>5,G6<0,G6>(5*13),H6<0,H6>(5*13)),"Number out of range error","Valid Scores entered")) ->  | K6: =IF(E6="","",IF((E6*13>G6),"Error in submitting Games Won or Points Home","OK")) ->  | L6: =IF(E6="","",IF((F6*13>H6),"Error in submitting Games Won or Points Away","OK")) -> 
A7: 04.05.2015 | B7: =B6+1 -> 3 | C7: Bank Hol
A8: 11.05.2015 | B8: 4 | C8: Away | D8: Station Masters | E8: =Station!F8 -> 1 | F8: 4 | G8: =Station!H8 -> 44 | H8: =Station!G8 -> 55 | I8: 0 | J8: Valid Scores entered | K8: OK | L8: OK
A9: 18.05.2015 | B9: 5 | C9: Home | D9: Cricketers | E9: 1 | F9: 4 | G9: 40 | H9: 61 | I9: 0 | J9: Valid Scores entered | K9: OK | L9: OK
A10: 25.05.2015 | B10: 6 | C10: Bank Hol
A11: 01.06.2015 | B11: 7 | C11: Away | D11: Axemen | E11: =Axemen!F11 -> 3 | F11: 2 | G11: =Axemen!H11 -> 56 | H11: =Axemen!G11 -> 41 | I11: 1 | J11: Valid Scores entered | K11: OK | L11: OK
A12: 08.06.2015 | B12: 8 | C12: Home | D12: Old Bulls Head | E12: 4 | F12: 1 | G12: 64 | H12: 44 | I12: 1 | J12: Valid Scores entered | K12: OK | L12: OK
A13: 15.06.2015 | B13: 9 | C13: Away | D13: Farmers Boy | E13: ='Farmers Boy'!F13 -> 3 | F13: 2 | G13: ='Farmers Boy'!H13 -> 45 | H13: ='Farmers Boy'!G13 -> 53 | I13: 1 | J13: Valid Scores entered | K13: OK | L13: OK
A14: 22.06.2015 | B14: 10 | C14: Away | D14: Brown Bear | E14: ='Brown Bear'!F14 -> 4 | F14: 1 | G14: ='Brown Bear'!H14 -> 63 | H14: ='Brown Bear'!G14 -> 23 | I14: 1 | J14: Valid Scores entered | K14: OK | L14: OK
A15: 29.06.2015 | B15: 11 | C15: Bye
A16: 06.07.2015 | B16: 12 | C16: Home | D16: Station Masters | E16: 2 | F16: 3 | G16: 48 | H16: 50 | I16: 0 | J16: Valid Scores entered | K16: OK | L16: OK
A17: 13.07.2015 | B17: 13 | C17: Away | D17: Cricketers | E17: =Cricketers!F17 -> 0 | F17: 5 | G17: =Cricketers!H17 -> 25 | H17: =Cricketers!G17 -> 65 | I17: 0 | J17: Valid Scores entered | K17: OK | L17: OK
A18: 20.07.2015 | B18: 14 | C18: Home | D18: Axemen | E18: 4 | F18: 1 | G18: 59 | H18: 44 | I18: 1 | J18: Valid Scores entered | K18: OK | L18: OK
A19: 27.07.2015 | B19: 15 | C19: Away | D19: Old Bulls Head | E19: ='Old Bulls Head'!F19 -> 2 | F19: 3 | G19: ='Old Bulls Head'!H19 -> 42 | H19: ='Old Bulls Head'!G19 -> 61 | I19: 0 | J19: Valid Scores entered | K19: OK | L19: OK
A20: 03.08.2015 | B20: 16 | C20: Home | D20: Farmers Boy | E20: 3 | F20: 2 | G20: 51 | H20: 49 | I20: 1 | J20: Valid Scores entered | K20: OK | L20: OK
A21: 10.08.2015 | B21: 17 | C21: Home | D21: Brown Bear | E21: 5 | F21: 0 | G21: 65 | H21: 29 | I21: 1 | J21: Valid Scores entered | K21: OK | L21: OK
A22: 17.08.2015 | B22: 18 | C22: Bye
A23: 24.08.2015 | B23: 19 | C23: Away | D23: Station Masters | E23: =Station!F23 -> 0 | F23: 5 | G23: =Station!H23 -> 35 | H23: =Station!G23 -> 65 | I23: 0 | J23: Valid Scores entered | K23: OK | L23: OK
A24: 31.08.2015 | B24: 20 | C24: Bank Hol
A25: 07.09.2015 | B25: 21 | C25: Home | D25: Cricketers | E25: 0 | F25: 3 | G25: 0 | H25: 45 | I25: 0 | J25: Valid Scores entered | K25: OK | L25: OK
A26: 14.09.2015 | B26: 22 | C26: Away | D26: Axemen | E26: =Axemen!F26 -> 1 | F26: 4 | G26: =Axemen!H26 -> 35 | H26: =Axemen!G26 -> 64 | I26: 0 | J26: Valid Scores entered | K26: OK | L26: OK
A27: 21.09.2015 | B27: 23 | C27: Home | D27: Old Bulls Head | E27: 4 | F27: 1 | G27: 59 | H27: 33 | I27: 1 | J27: Valid Scores entered | K27: OK | L27: OK
A28: 28.09.2015 | B28: 24 | C28: Away | D28: Farmers Boy | E28: ='Farmers Boy'!F28 -> 2 | F28: 3 | G28: ='Farmers Boy'!H28 -> 51 | H28: ='Farmers Boy'!G28 -> 55 | I28: 0 | J28: Valid Scores entered | K28: OK | L28: OK

Sheet Station
A2: Team | B2: Station Masters
K3: Check that there are enough points to win the games
A4: Date | B4: Week | C4: Home/Away | D4: Opponent | E4: Games Won | F4: Games lost | G4: Points For | H4: Points Against | I4: Match Won? | J4: Check that input numbers are within range | K4: Home | L4: Away
A5: 20.04.2014 | B5: 1 | C5: Home | D5: Farmers Boy | E5: 3 | F5: =IF(E5="","",5-E5) -> 2 | G5: 61 | H5: 43 | I5: =IF(E5="","",IF(E5>2,1,0)) -> 1 | J5: =IF(E5="","",IF(OR(E5<0,E5>5,G5<0,G5>(5*13),H5<0,H5>(5*13)),"Number out of range error","Valid Scores entered")) -> Valid Scores entered | K5: =IF(E5="","",IF((E5*13>G5),"Error in submitting Games Won or Points Home","OK")) -> OK | L5: =IF(E5="","",IF((F5*13>H5),"Error in submitting Games Won or Points Away","OK")) -> OK
A6: 27.04.2015 | B6: =B5+1 -> 2 | C6: Away | D6: Brown Bear | E6: ='Brown Bear'!F6 -> 3 | F6: 2 | G6: ='Brown Bear'!H6 -> 56 | H6: ='Brown Bear'!G6 -> 44 | I6: =IF(E6="","",IF(E6>2,1,0)) -> 1 | J6: =IF(E6="","",IF(OR(E6<0,E6>5,G6<0,G6>(5*13),H6<0,H6>(5*13)),"Number out of range error","Valid Scores entered")) -> Valid Scores entered | K6: =IF(E6="","",IF((E6*13>G6),"Error in submitting Games Won or Points Home","OK")) -> OK | L6: =IF(E6="","",IF((F6*13>H6),"Error in submitting Games Won or Points Away","OK")) -> OK
A7: 04.05.2015 | B7: =B6+1 -> 3 | C7: Bank Hol
A8: 11.05.2015 | B8: 4 | C8: Home | D8: Drifters | E8: 4 | F8: 1 | G8: 55 | H8: 44 | I8: 1 | J8: Valid Scores entered | K8: OK | L8: OK
A9: 18.05.2015 | B9: 5 | C9: Bye
A10: 25.05.2015 | B10: 6 | C10: Bank Hol
A11: 01.06.2015 | B11: 7 | C11: Away | D11: Cricketers | E11: =Cricketers!F11 -> 1 | F11: =IF(E11="","",5-E11) -> 4 | G11: =Cricketers!H11 -> 40 | H11: =Cricketers!G11 -> 64 | I11: =IF(E11="","",IF(E11>2,1,0)) -> 0 | J11: =IF(E11="","",IF(OR(E11<0,E11>5,G11<0,G11>(5*13),H11<0,H11>(5*13)),"Number out of range error","Valid Scores entered")) -> Valid Scores entered | K11: =IF(E11="","",IF((E11*13>G11),"Error in submitting Games Won or Points Home","OK")) -> OK | L11: =IF(E11="","",IF((F11*13>H11),"Error in submitting Games Won or Points Away","OK")) -> OK
A12: 08.06.2015 | B12: 8 | C12: Home | D12: Axemen | E12: 4 | F12: 1 | G12: 58 | H12: 29 | I12: 1 | J12: Valid Scores entered | K12: OK | L12: OK
A13: 15.06.2015 | B13: 9 | C13: Away | D13: Old Bulls Head | E13: ='Old Bulls Head'!F13 -> 3 | F13: 2 | G13: ='Old Bulls Head'!H13 -> 53 | H13: ='Old Bulls Head'!G13 -> 45 | I13: 1 | J13: Valid Scores entered | K13: OK | L13: OK
A14: 22.06.2015 | B14: 10 | C14: Away | D14: Farmers Boy | E14: ='Farmers Boy'!F14 -> 5 | F14: =IF(E14="","",5-E14) -> 0 | G14: ='Farmers Boy'!H14 -> 65 | H14: ='Farmers Boy'!G14 -> 45 | I14: =IF(E14="","",IF(E14>2,1,0)) -> 1 | J14: =IF(E14="","",IF(OR(E14<0,E14>5,G14<0,G14>(5*13),H14<0,H14>(5*13)),"Number out of range error","Valid Scores entered")) -> Valid Scores entered | K14: =IF(E14="","",IF((E14*13>G14),"Error in submitting Games Won or Points Home","OK")) -> OK | L14: =IF(E14="","",IF((F14*13>H14),"Error in submitting Games Won or Points Away","OK")) -> OK
A15: 29.06.2015 | B15: 11 | C15: Home | D15: Brown Bear | E15: 5 | F15: 0 | G15: 65 | H15: 23 | I15: 1 | J15: Valid Scores entered | K15: OK | L15: OK
A16: 06.07.2015 | B16: 12 | C16: Away | D16: Drifters | E16: =Drifters!F16 -> 3 | F16: 2 | G16: =Drifters!H16 -> 50 | H16: =Drifters!G16 -> 48 | I16: 1 | J16: Valid Scores entered | K16: OK | L16: OK
A17: 13.07.2015 | B17: 13 | C17: Bye
A18: 20.07.2015 | B18: 14 | C18: Home | D18: Cricketers | E18: 3 | F18: 2 | G18: 47 | H18: 53 | I18: 1 | J18: Valid Scores entered | K18: OK | L18: OK
A19: 27.07.2015 | B19: 15 | C19: Away | D19: Axemen | E19: =Axemen!F19 -> 1 | F19: 4 | G19: =Axemen!H19 -> 46 | H19: =Axemen!G19 -> 60 | I19: 0 | J19: Valid Scores entered | K19: OK | L19: OK
A20: 03.08.2015 | B20: 16 | C20: Home | D20: Old Bulls Head | E20: 4 | F20: 1 | G20: 61 | H20: 39 | I20: 1 | J20: Valid Scores entered | K20: OK | L20: OK
A21: 10.08.2015 | B21: 17 | C21: Home | D21: Farmers Boy | E21: 4 | F21: 1 | G21: 62 | H21: 39 | I21: 1 | J21: Valid Scores entered | K21: OK | L21: OK
A22: 17.08.2015 | B22: 18 | C22: Away | D22: Brown Bear | E22: ='Brown Bear'!F22 -> 4 | F22: 1 | G22: ='Brown Bear'!H22 -> 54 | H22: ='Brown Bear'!G22 -> 27 | I22: 1 | J22: Valid Scores entered | K22: OK | L22: OK
A23: 24.08.2015 | B23: 19 | C23: Home | D23: Drifters | E23: 5 | F23: 0 | G23: 65 | H23: 35 | I23: 1 | J23: Valid Scores entered | K23: OK | L23: OK
A24: 31.08.2015 | B24: 20 | C24: Bank Hol
A25: 07.09.2015 | B25: 21 | C25: Bye
A26: 14.09.2015 | B26: 22 | C26: Away | D26: Cricketers | E26: =Cricketers!F26 -> 2 | F26: 3 | G26: =Cricketers!H26 -> 57 | H26: =Cricketers!G26 -> 51 | I26: 0 | J26: Valid Scores entered | K26: OK | L26: OK
A27: 21.09.2015 | B27: 23 | C27: Home | D27: Axemen | E27: 2 | F27: 3 | G27: 49 | H27: 48 | I27: 0 | J27: Valid Scores entered | K27: OK | L27: OK
A28: 28.09.2015 | B28: 24 | C28: Away | D28: Old Bulls Head | E28: ='Old Bulls Head'!F28 -> 1 | F28: 4 | G28: ='Old Bulls Head'!H28 -> 51 | H28: ='Old Bulls Head'!G28 -> 57 | I28: 0 | J28: Valid Scores entered | K28: OK | L28: OK

Sheet Cricketers
A2: Team | B2: Cricketers
K3: Check that there are enough points to win the games
A4: Date | B4: Week | C4: Home/Away | D4: Opponent | E4: Games Won | F4: Games lost | G4: Points For | H4: Points Against | I4: Match Won? | J4: Check that input numbers are within range | K4: Home | L4: Away
A5: 20.04.2014 | B5: 1 | C5: Home | D5: Old Bulls Head | E5: 5 | F5: =IF(E5="","",5-E5) -> 0 | G5: 65 | H5: 17 | I5: =IF(E5="","",IF(E5>2,1,0)) -> 1 | J5: =IF(E5="","",IF(OR(E5<0,E5>5,G5<0,G5>(5*13),H5<0,H5>(5*13)),"Number out of range error","Valid Scores entered")) -> Valid Scores entered | K5: =IF(E5="","",IF((E5*13>G5),"Error in submitting Games Won or Points Home","OK")) -> OK | L5: =IF(E5="","",IF((F5*13>H5),"Error in submitting Games Won or Points Away","OK")) -> OK
A6: 27.04.2015 | B6: =B5+1 -> 2 | C6: Away | D6: Farmers Boy | E6: ='Farmers Boy'!F6 -> 2 | F6: 3 | G6: ='Farmers Boy'!H6 -> 52 | H6: ='Farmers Boy'!G6 -> 46 | I6: =IF(E6="","",IF(E6>2,1,0)) -> 0 | J6: =IF(E6="","",IF(OR(E6<0,E6>5,G6<0,G6>(5*13),H6<0,H6>(5*13)),"Number out of range error","Valid Scores entered")) -> Valid Scores entered | K6: =IF(E6="","",IF((E6*13>G6),"Error in submitting Games Won or Points Home","OK")) -> OK | L6: =IF(E6="","",IF((F6*13>H6),"Error in submitting Games Won or Points Away","OK")) -> OK
A7: 04.05.2015 | B7: =B6+1 -> 3 | C7: Bank Hol
A8: 11.05.2015 | B8: 4 | C8: Home | D8: Brown Bear | E8: 3 | F8: 2 | G8: 57 | H8: 28 | I8: 1 | J8: Valid Scores entered | K8: OK | L8: OK
A9: 18.05.2015 | B9: 5 | C9: Away | D9: Drifters | E9: =Drifters!F9 -> 4 | F9: 1 | G9: =Drifters!H9 -> 61 | H9: =Drifters!G9 -> 40 | I9: 1 | J9: Valid Scores entered | K9: OK | L9: OK
A10: 25.05.2015 | B10: 6 | C10: Bank Hol
A11: 01.06.2015 | B11: 7 | C11: Home | D11: Station Masters | E11: 4 | F11: 1 | G11: 64 | H11: 40 | I11: 1 | J11: Valid Scores entered | K11: OK | L11: OK
A12: 08.06.2015 | B12: 8 | C12: Bye
A13: 15.06.2015 | B13: 9 | C13: Away | D13: Axemen | E13: =Axemen!F13 -> 4 | F13: 1 | G13: =Axemen!H13 -> 54 | H13: =Axemen!G13 -> 32 | I13: 1 | J13: Valid Scores entered | K13: OK | L13: OK
A14: 22.06.2015 | B14: 10 | C14: Away | D14: Old Bulls Head | E14: ='Old Bulls Head'!F14 -> 4 | F14: 1 | G14: ='Old Bulls Head'!H14 -> 55 | H14: ='Old Bulls Head'!G14 -> 30 | I14: 1 | J14: Valid Scores entered | K14: OK | L14: OK
A15: 29.06.2015 | B15: 11 | C15: Home | D15: Farmers Boy | E15: 2 | F15: 3 | G15: 51 | H15: 49 | I15: 0 | J15: Valid Scores entered | K15: OK | L15: OK
A16: 06.07.2015 | B16: 12 | C16: Away | D16: Brown Bear | E16: ='Brown Bear'!F16 -> 5 | F16: 0 | G16: ='Brown Bear'!H16 -> 65 | H16: ='Brown Bear'!G16 -> 16 | I16: 1 | J16: Valid Scores entered | K16: OK | L16: OK
A17: 13.07.2015 | B17: 13 | C17: Home | D17: Drifters | E17: 5 | F17: 0 | G17: 65 | H17: 25 | I17: 1 | J17: Valid Scores entered | K17: OK | L17: OK
A18: 20.07.2015 | B18: 14 | C18: Away | D18: Station Masters | E18: =Station!F18 -> 2 | F18: 3 | G18: =Station!H18 -> 53 | H18: =Station!G18 -> 47 | I18: 0 | J18: Valid Scores entered | K18: OK | L18: OK
A19: 27.07.2015 | B19: 15 | C19: Bye
A20: 03.08.2015 | B20: 16 | C20: Home | D20: Axemen | E20: 4 | F20: 1 | G20: 52 | H20: 43 | I20: 1 | J20: Valid Scores entered | K20: OK | L20: OK
A21: 10.08.2015 | B21: 17 | C21: Home | D21: Old Bulls Head | E21: 3 | F21: 0 | G21: 45 | H21: 0 | I21: 1 | J21: Valid Scores entered | K21: OK | L21: OK
A22: 17.08.2015 | B22: 18 | C22: Away | D22: Farmers Boy | E22: ='Farmers Boy'!F22 -> 3 | F22: 2 | G22: ='Farmers Boy'!H22 -> 54 | H22: ='Farmers Boy'!G22 -> 38 | I22: 1 | J22: Valid Scores entered | K22: OK | L22: OK
A23: 24.08.2015 | B23: 19 | C23: Home | D23: Brown Bear | E23: 3 | F23: 0 | G23: 45 | H23: 0 | I23: 1 | J23: Valid Scores entered | K23: OK | L23: OK
A24: 31.08.2015 | B24: 20 | C24: Bank Hol
A25: 07.09.2015 | B25: 21 | C25: Away | D25: Drifters | E25: 3 | F25: 0 | G25: =Drifters!H25 -> 45 | H25: =Drifters!G25 -> 0 | I25: 1 | J25: Valid Scores entered | K25: OK | L25: OK
A26: 14.09.2015 | B26: 22 | C26: Home | D26: Station Masters | E26: 3 | F26: 2 | G26: 51 | H26: 57 | I26: 1 | J26: Valid Scores entered | K26: OK | L26: OK
A27: 21.09.2015 | B27: 23 | C27: Bye
A28: 28.09.2015 | B28: 24 | C28: Away | D28: Axemen | E28: =Axemen!F28 -> 4 | F28: 1 | G28: =Axemen!H28 -> 58 | H28: =Axemen!G28 -> 41 | I28: 1 | J28: Valid Scores entered | K28: OK | L28: OK
